lending/lending_fUSD_20240610
["ID","MTS","AMOUNT","RATE_DAILY","PERIOD"]
[328983570,1718040661756,-676.24,0.00029999,4]
[328983571,1718040661766,-676.24,0.00029999,4]
[328983572,1718040661776,-676.24,0.00029999,4]
[328983573,1718040661785,-676.24,0.00029999,4]
[328983574,1718040661794,-676.24,0.00029999,4]
[328983575,1718040661804,-676.31870519,0.00029999,4]
[328983576,1718040661814,-500.0,0.00029999,4]
[328983577,1718040661823,-500.0,0.00029999,4]
[328983578,1718040661833,-500.0,0.00029999,4]
[328983579,1718040661843,-500.0,0.00029999,4]
[328983580,1718040661852,-246.62884584,0.00029999,4]
[328983581,1718040661862,-500.0,0.00029999,4]
[328983582,1718040661872,-200.93129231,0.00029999,4]
[328983583,1718040661882,-699.23,0.00029999,4]
[328983584,1718040661891,-699.23,0.00029999,4]
[328983585,1718040661902,-699.23,0.00029999,4]
[328983586,1718040661912,-699.23,0.00029999,4]
[328983587,1718040661921,-699.23,0.00029999,4]
[328983588,1718040661931,-699.23,0.00029999,4]
[328983589,1718040661940,-2096.98,0.00029999,4]
[328983590,1718040661950,-583.64,0.00029999,4]
[328983591,1718040661961,-699.23,0.00029999,4]
[328983592,1718040661971,-583.64,0.00029999,4]
[328983593,1718040661980,-699.23,0.00029999,4]
[328983594,1718040661990,-2096.98,0.00029999,4]
[328983595,1718040662001,-583.64,0.00029999,4]
[328983596,1718040662010,-2096.98,0.00029999,4]
[328983597,1718040662021,-583.64,0.00029999,4]
[328983598,1718040662031,-2096.98,0.00029999,4]
[328983599,1718040662041,-583.64,0.00029999,4]
[328983600,1718040662054,-2096.98,0.00029999,4]
[328983601,1718040662064,-583.64,0.00029999,4]
[328983602,1718040662074,-2096.98,0.00029999,4]
[328983603,1718040662084,-699.36649456,0.00029999,4]
[328983604,1718040662094,-583.64,0.00029999,4]
[328983605,1718040662105,-2096.98,0.00029999,4]
[328983606,1718040662115,-583.64,0.00029999,4]
[328983607,1718040662126,-2096.98,0.00029999,4]
[328983608,1718040662137,-583.64,0.00029999,4]
[328983609,1718040662147,-2096.98,0.00029999,4]
[328983610,1718040662157,-583.64,0.00029999,4]
[328983611,1718040662167,-2096.98,0.00029999,4]
[328983612,1718040662177,-583.64,0.00029999,4]
[328983613,1718040662187,-2096.98,0.00029999,4]
[328983614,1718040662198,-583.69136333,0.00029999,4]
[328983615,1718040662208,-2096.98,0.00029999,4]
[328983616,1718040662217,-2096.98,0.00029999,4]
[328983617,1718040662227,-2097.08082965,0.00029999,4]
[328983618,1718040662237,-500.0,0.00029999,4]
[328983619,1718040662248,-500.0,0.00029999,4]
[328983620,1718040662259,-500.0,0.00029999,4]
[328983621,1718040662270,-500.0,0.00029999,4]
[328983622,1718040662280,-500.0,0.00029999,4]
[328983623,1718040662290,-500.0,0.00029999,4]
[328983624,1718040662300,-500.0,0.00029999,4]
[328983625,1718040662311,-381.49493503,0.00029999,4]
[328983626,1718040662322,-500.0,0.00029999,4]
[328983627,1718040662332,-500.0,0.00029999,4]
[328983628,1718040662341,-500.0,0.00029999,4]
[328983629,1718040662351,-500.0,0.00029999,4]
[328983630,1718040662361,-500.0,0.00029999,4]
[328983631,1718040662371,-498.1893,0.00029999,4]
[328983632,1718040662497,-500.0,0.00029999,4]
[328983633,1718040662508,-500.0,0.00029999,4]
[328983634,1718040662520,-500.0,0.00029999,4]
[328983635,1718040662529,-500.0,0.00029999,4]
[328983636,1718040662539,-500.0,0.00029999,4]
[328983637,1718040662550,-500.0,0.00029999,4]
[328983638,1718040662560,-489.17837779,0.00029999,4]
[328983639,1718040662570,-500.0,0.00029999,4]
[328983640,1718040662580,-500.0,0.00029999,4]
[328983641,1718040662590,-500.0,0.00029999,4]
[328983642,1718040662600,-220.19571955,0.00029999,4]
[328983643,1718040662616,-629.1,0.00029999,4]
[328983644,1718040662625,-500.0,0.00029999,4]
[328983645,1718040662636,-629.1,0.00029999,4]
[328983646,1718040662646,-500.0,0.00029999,4]
[328983647,1718040662658,-629.1,0.00029999,4]
[328983648,1718040662668,-500.0,0.00029999,4]
[328983649,1718040662678,-629.1,0.00029999,4]
[328983650,1718040662690,-563.7428658,0.00029999,4]
[328983651,1718040662701,-629.1,0.00029999,4]
[328983652,1718040662712,-629.1,0.00029999,4]
[328983653,1718040662722,-629.1,0.00029999,4]
[328983654,1718040662732,-629.1,0.00029999,4]
[328983655,1718040662743,-629.1,0.00029999,4]
[328983656,1718040662753,-629.1,0.00029999,4]
[328983657,1718040662764,-629.1,0.00029999,4]
[328983658,1718040662777,-629.1,0.00029999,4]
[328983659,1718040662787,-629.1,0.00029999,4]
[328983660,1718040662798,-629.22664395,0.00029999,4]
[328983661,1718040662808,-2101.27,0.00029999,4]
[328983662,1718040662819,-2101.27,0.00029999,4]
[328983663,1718040662829,-2101.27,0.00029999,4]
[328983664,1718040662840,-2101.27,0.00029999,4]
[328983665,1718040662850,-1621.00583181,0.00029999,4]
[328983666,1718040663036,-404.64145571,0.00029999,4]
[328983667,1718040663050,-75.62271248,0.00029999,4]
[328983668,1718040663060,-540.75728752,0.00029999,4]
[328983669,1718040663089,-3320.06041551,0.00025456,2]
[328983670,1718040663099,-500.0,0.00029996,4]
[328983671,1718040663109,-441.15134026,0.00029997,4]
[328983672,1718040663120,-1560.51271248,0.00029999,4]
[328983673,1718040663132,-2101.27,0.00029999,4]
[328983674,1718040663142,-2101.27,0.00029999,4]
[328983675,1718040663153,-2101.39572949,0.00029999,4]
[328983676,1718040663163,-2319.07,0.00029999,4]
[328983677,1718040663173,-2319.07,0.00029999,4]
[328983678,1718040663183,-2319.07,0.00029999,4]
[328983679,1718040663193,-2319.07,0.00029999,4]
[328983680,1718040663204,-2319.07,0.00029999,4]
[328983681,1718040663214,-2319.07,0.00029999,4]
[328983682,1718040663224,-2319.07,0.00029999,4]
[328983683,1718040663234,-1927.48911709,0.00029999,4]
[328983684,1718040663246,-391.58088291,0.00029999,4]
[328983685,1718040663256,-2319.15195321,0.00029999,4]
[328983686,1718040663267,-830.95,0.00029999,4]
[328983687,1718040663277,-830.95,0.00029999,4]
[328983688,1718040663288,-830.95,0.00029999,4]
[328983689,1718040663298,-830.95,0.00029999,4]
[328983690,1718040663309,-830.95,0.00029999,4]
[328983691,1718040663319,-830.95,0.00029999,4]
[328983692,1718040663330,-830.95,0.00029999,4]
[328983693,1718040663340,-830.95,0.00029999,4]
[328983694,1718040663351,-1098.46,0.00029999,4]
[328983695,1718040663360,-1098.46,0.00029999,4]
[328983696,1718040663370,-830.95,0.00029999,4]
[328983697,1718040663381,-830.95,0.00029999,4]
[328983698,1718040663392,-1098.46,0.00029999,4]
[328983699,1718040663402,-1098.46,0.00029999,4]
[328983700,1718040663411,-830.95,0.00029999,4]
[328983701,1718040663420,-830.95,0.00029999,4]
[328983702,1718040663431,-1098.46,0.00029999,4]
[328983703,1718040663442,-830.95,0.00029999,4]
[328983704,1718040663452,-1098.46,0.00029999,4]
[328983705,1718040663463,-831.18049808,0.00029999,4]
[328983706,1718040663473,-1098.46,0.00029999,4]
[328983707,1718040663483,-1098.46,0.00029999,4]
[328983708,1718040663494,-1098.46,0.00029999,4]
[328983709,1718040663504,-1098.46,0.00029999,4]
[328983710,1718040663516,-1098.46,0.00029999,4]
[328983711,1718040663527,-1098.46,0.00029999,4]
[328983712,1718040663537,-1098.46,0.00029999,4]
[328983713,1718040663548,-1098.5274807,0.00029999,4]
[328983714,1718040663558,-545.5,0.00029999,4]
[328983715,1718040663568,-545.5,0.00029999,4]
[328983716,1718040663578,-545.5,0.00029999,4]
[328983717,1718040663587,-545.5,0.00029999,4]
[328983718,1718040663598,-545.5,0.00029999,4]
[328983719,1718040663610,-545.5,0.00029999,4]
[328983720,1718040663621,-2213.63,0.00029999,4]
[328983721,1718040663630,-545.5,0.00029999,4]
[328983722,1718040663641,-545.5,0.00029999,4]
[328983723,1718040663651,-1262.57921481,0.00029999,4]
[328983724,1718040663664,-951.05078519,0.00029999,4]
[328983725,1718040663675,-545.5,0.00029999,4]
[328983726,1718040663688,-347.28010595,0.00029999,4]
[328983727,1718040663705,-500.0,0.00029997,4]
[328983728,1718040663716,-1866.34989405,0.00029999,4]
[328983729,1718040663725,-2213.63,0.00029999,4]
[328983730,1718040663735,-545.5,0.00029999,4]
[328983731,1718040663744,-2213.63,0.00029999,4]
[328983732,1718040663754,-2213.63,0.00029999,4]
[328983733,1718040663763,-545.5,0.00029999,4]
[328983734,1718040663775,-545.5,0.00029999,4]
[328983735,1718040663785,-545.5,0.00029999,4]
[328983736,1718040663794,-2213.63,0.00029999,4]
[328983737,1718040663804,-545.6069984,0.00029999,4]
[328983738,1718040663814,-2213.63,0.00029999,4]
[328983739,1718040663824,-2213.63,0.00029999,4]
[328983740,1718040663833,-2213.63,0.00029999,4]
[328983741,1718040663843,-2213.63,0.00029999,4]
[328983742,1718040663853,-2213.75952681,0.00029999,4]
[328983743,1718040663862,-150.0,0.00029999,2]
[328983744,1718040663871,-500.0,0.00029999,4]
[328983745,1718040663881,-500.0,0.00029999,4]
[328983746,1718040663890,-500.0,0.00029999,4]
[328983747,1718040663899,-500.0,0.00029999,4]
[328983748,1718040663908,-500.0,0.00029999,4]
[328983749,1718040663918,-500.0,0.00029999,4]
[328983750,1718040663927,-416.98171892,0.00029999,4]
[328983751,1718040663937,-1837.85,0.00029999,4]
[328983752,1718040663946,-1837.85,0.00029999,4]
[328983753,1718040663956,-500.0,0.00029999,4]
[328983754,1718040663965,-1837.85,0.00029999,4]
[328983755,1718040663975,-500.0,0.00029999,4]
[328983756,1718040663985,-1837.85,0.00029999,4]
[328983757,1718040663994,-500.0,0.00029999,4]
[328983758,1718040664004,-306.17650674,0.00029999,4]
[328983759,1718040664018,-1531.67349326,0.00029999,4]
[328983760,1718040664027,-500.0,0.00029999,4]
[328983761,1718040664037,-1163.01802674,0.00029999,4]
[328983762,1718040664048,-674.83197326,0.00029999,4]
[328983763,1718040664059,-500.0,0.00029999,4]
[328983764,1718040664069,-1837.85,0.00029999,4]
[328983765,1718040664079,-500.0,0.00029999,4]
[328983766,1718040664089,-1837.85,0.00029999,4]
[328983767,1718040664099,-500.0,0.00029999,4]
[328983768,1718040664109,-500.0,0.00029999,4]
[328983769,1718040664119,-1838.016,0.00029999,4]
[328983770,1718040664130,-500.0,0.00029999,4]
[328983771,1718040664140,-358.80212191,0.00029999,4]
[328983772,1718040664149,-500.0,0.00029999,4]
[328983773,1718040664159,-500.0,0.00029999,4]
[328983774,1718040664168,-500.0,0.00029999,4]
[328983775,1718040664178,-500.0,0.00029999,4]
[328983776,1718040664188,-500.0,0.00029999,4]
[328983777,1718040664198,-500.0,0.00029999,4]
[328983778,1718040664207,-500.0,0.00029999,4]
[328983779,1718040664216,-500.0,0.00029999,4]
[328983780,1718040664226,-632.38449529,0.00029999,4]
[328983781,1718040664235,-500.0,0.00029999,4]
[328983782,1718040664244,-500.0,0.00029999,4]
[328983783,1718040664253,-500.0,0.00029999,4]
[328983784,1718040664262,-500.0,0.00029999,4]
[328983785,1718040664273,-253.18058754,0.00029999,4]
[328983786,1718040664282,-608.81,0.00029999,4]
[328983787,1718040664292,-608.81,0.00029999,4]
[328983788,1718040664301,-608.81,0.00029999,4]
[328983789,1718040664310,-565.91365335,0.00029999,4]
[328983790,1718040664382,-1292.86092945,0.00026011,2]
[328983791,1718040664395,-2027.19948606,0.00026011,2]
[328983792,1718040664405,-198.98,0.00026891,2]
[328983793,1718040664415,-6426.53654644,0.00029041,2]
[328983794,1718040664427,-3755.125,0.00029041,2]
[328983795,1718040664439,-959.55,0.00029041,2]
[328983796,1718040664464,-8858.78845356,0.00029041,2]
[328983797,1718040664474,-35.65461723,0.00029041,2]
[328983798,1718040664486,-2219.87787894,0.00029041,2]
[328983799,1718040664495,-500.0,0.00029998,4]
[328983800,1718040664505,-500.0,0.00029998,4]
[328983801,1718040664515,-42.89634665,0.00029999,4]
[328983802,1718040664524,-608.81,0.00029999,4]
[328983803,1718040664534,-608.81,0.00029999,4]
[328983804,1718040664544,-608.81,0.00029999,4]
[328983805,1718040664553,-500.0,0.00029999,2]
[328983806,1718040664563,-608.81,0.00029999,4]
[328983807,1718040664572,-500.0,0.00029999,2]
[328983808,1718040664582,-608.81,0.00029999,4]
[328983809,1718040664592,-500.0,0.00029999,2]
[328983810,1718040664601,-608.81,0.00029999,4]
[328983811,1718040664616,-500.0,0.00029999,2]
[328983812,1718040664626,-608.81,0.00029999,4]
[328983813,1718040664635,-500.0,0.00029999,2]
[328983814,1718040664644,-608.81,0.00029999,4]
[328983815,1718040664654,-500.0,0.00029999,2]
[328983816,1718040664664,-608.81,0.00029999,4]
[328983817,1718040664673,-608.96990245,0.00029999,4]
[328983818,1718040664684,-500.0,0.00029999,4]
[328983819,1718040664693,-500.0,0.00029999,4]
[328983820,1718040664702,-534.50158187,0.00029999,4]
[328983821,1718040664712,-553.73146077,0.0003,2]
[328983822,1718040664723,-831.48450349,0.0003,2]
[328983823,1718040664742,-427.89557515,0.00029998,2]
[328983824,1718040664752,-8486.592775,0.0003,2]
[328983825,1718040664777,-3853.3,0.0003,2]
[328983826,1718040664789,-696.65702926,0.0003,2]
[328983827,1718040664800,-1299.95555428,0.0003,2]
[328983828,1718040664824,-877.54795875,0.00029998,2]
[328983829,1718040664833,-391.90264436,0.00029998,2]
[328983830,1718040664842,-130.02251671,0.0003,2]
[328983831,1718040664854,-307.3,0.0003,2]
[328983832,1718040665050,-235.97802269,0.00029998,2]
[328983833,1718040665061,-164.0223231,0.00029998,2]
[328983834,1718040665072,-202.2218218,0.00029998,2]
[328983835,1718040665082,-157.92043371,0.00029998,2]
[328983836,1718040665092,-183.97791029,0.00029998,2]
[328983837,1718040665101,-512386.12674824,0.0003,2]
[328983838,1718040665112,-24450.20548453,0.0003,2]
[328983839,1718040665161,-163552.25863419,0.0003,2]
[328983840,1718040665172,-2056.76758228,0.0003,2]
[328983841,1718040665184,-9183.69,0.0003,2]
[328983842,1718040665200,-927.58686961,0.0003,2]
[328983847,1718040824264,34467.43798256,0.00014,2]
[328983850,1718041621722,-155.0,0.0001295,2]
[328983851,1718041621748,-942.35655589,0.0001295,2]
[328983852,1718041621773,-155.0,0.00012951,2]
[328983853,1718041621798,-150.0,0.00012959,2]
[328983854,1718041621825,-1012.30856095,0.00012979,2]
[328983855,1718041621851,-150.0,0.00012979,2]
[328983856,1718041621877,-66224.2394825,0.0001298,2]
[328983857,1718041623075,300.0,0.00012979,2]
[328983859,1718041722570,2609.35275362,0.00012719,2]
[328983887,1718041833123,-155.0,0.00013893,2]
[328983888,1718041833133,-3066.02458345,0.00013894,2]
[328983889,1718041833143,-155.0,0.00013894,2]
[328983890,1718041833154,-18.01385369,0.00013895,2]
[328983891,1718041833166,-681.33,0.00013895,2]
[328983892,1718041833178,-1101.00994531,0.00013895,2]
[328983893,1718041833358,-1586.4768138,0.00013895,2]
[328983894,1718041833368,-1927.38018579,0.00013895,2]
[328983895,1718041833379,-1000.0,0.00013896,2]
[328983896,1718041833389,-300.0,0.00013896,2]
[328983897,1718041833399,-2822.74124506,0.00013897,2]
[328983898,1718041833410,-757.34625938,0.000139,2]
[328983899,1718041833420,-797.0,0.00013999,2]
[328983900,1718041833430,-61659.79015087,0.00014,2]
[328983901,1718041833440,-423.69654913,0.00014,2]
[328983902,1718041833450,-449.93442049,0.00014898,2]
[328983903,1718041833460,-195.40209982,0.000149,2]
[328983904,1718041833471,-1189.36910711,0.000149,2]
[328983905,1718041833481,-306.95,0.00014904,2]
[328983906,1718041833491,-189.92070065,0.00014989,2]
[328983907,1718041833501,-299.99,0.00014989,2]
[328983908,1718041833513,-584.99,0.00014989,3]
[328983909,1718041833523,-152.14,0.0001499,2]
[328983910,1718041833534,-152.14,0.0001499,2]
[328983911,1718041833543,-180.33960977,0.00014998,2]
[328983912,1718041833553,-1791.56222238,0.00014998,2]
[328983913,1718041833563,-285.24365879,0.00014998,2]
[328983914,1718041833573,-155.0,0.00014998,2]
[328983915,1718041833584,-156.67264725,0.00014998,2]
[328983916,1718041833594,-689.62503831,0.00014998,2]
[328983917,1718041833604,-1427.04327615,0.00014998,2]
[328983918,1718041833614,-3019.17951546,0.00014998,2]
[328983919,1718041833624,-786.3940397,0.00014998,2]
[328983920,1718041833634,-536.37434974,0.00014998,2]
[328983921,1718041833644,-2231.44085212,0.00014998,2]
[328983922,1718041833654,-490.61954782,0.00014998,2]
[328983923,1718041833664,-161.59800779,0.00014998,2]
[328983924,1718041833675,-719.4340817,0.00014998,2]
[328983925,1718041833685,-156.70708804,0.00014998,2]
[328983926,1718041833695,-542.8956905,0.00014998,2]
[328983927,1718041833706,-1249.34786736,0.00014998,2]
[328983928,1718041833716,-3100.7560639,0.00014998,2]
[328983929,1718041833726,-328.03196452,0.00014998,2]
[328983930,1718041833736,-379843.74303706,0.00014999,2]
[328983931,1718041833748,-28524.47837498,0.00014999,2]
[328983932,1718041833760,-2381.40705352,0.00014999,2]
[328983933,1718041833772,-28869.66410086,0.00014999,2]
[328983940,1718041838836,-500.0,0.00014,2]
[328983941,1718041838847,-500.0,0.00014,2]
[328983942,1718041838859,-797.0,0.00014,2]
[328983943,1718041838870,-6480.73641094,0.00014999,2]
[328983944,1718041839170,-5011.6,0.00014999,2]
[328983945,1718041839184,-1172.76967418,0.00014999,2]
[328983946,1718041839197,-141936.18833148,0.00014999,2]
[328983947,1718041839209,-51480.76652093,0.00014999,2]
[328983948,1718041839524,-1745.78606927,0.00014999,2]
[328983949,1718041839538,-7852.42301977,0.00014999,2]
[328983950,1718041839786,-15840.39542271,0.00014999,2]
[328984448,1718041845419,-3075.90590176,0.00014998,2]
[328984450,1718041845430,-20208.93410444,0.00014999,2]
[328984452,1718041845440,-44005.71528837,0.00015,2]
[328984454,1718041845453,-854.07816963,0.00015,2]
[328984604,1718041846974,-1000.0,0.00014998,2]
[328984606,1718041846985,-150326.02886956,0.00015,2]
[328984609,1718041846997,-293.7897066,0.00015,2]
[328984611,1718041847009,-1268.42011833,0.00015,2]
[328984613,1718041847022,-3615.86608181,0.00015,2]
[328984615,1718041847039,-9485.16157941,0.00015,2]
[328984618,1718041847051,-837.93466786,0.00015,2]
[328984620,1718041847063,-549.81337909,0.00015,2]
[328984637,1718041847242,-400.0,0.00015,2]
[328984639,1718041847255,-7528.3816616,0.00015,2]
[328984641,1718041847267,-1098606.23311938,0.00015,2]
[328984644,1718041847279,-24083.45514909,0.00015,2]
[328984646,1718041847292,-12993.48670445,0.00015,2]
[328984648,1718041847304,-13904.70611044,0.00015,2]
[328984650,1718041847317,-33726.00650358,0.00015,2]
[328984652,1718041847329,-39567.98065039,0.00015,2]
[328984655,1718041847342,-59331.69432153,0.00015,2]
[328984657,1718041847352,-499.99,0.00015,2]
[328984659,1718041847362,-174.15984609,0.0001551,2]
[328984661,1718041847373,-258.64,0.00015736,2]
[328984663,1718041847383,-11475.29,0.00015737,2]
[328984665,1718041847393,-250.0,0.00016085,2]
[328984667,1718041847404,-2343.49,0.00016263,2]
[328984669,1718041847415,-340.74,0.00016437,2]
[328984671,1718041847426,-1000.0,0.00016454,2]
[328984673,1718041847436,-625.61,0.00016477,2]
[328984675,1718041847446,-4872.65,0.00016527,2]
[328984677,1718041847457,-8016.02,0.00016942,2]
[328984679,1718041847467,-1189.36910705,0.00017043,2]
[328984681,1718041847478,-177.68,0.00017569,2]
[328984683,1718041847488,-1000.0,0.00018511,2]
[328984685,1718041847499,-195.40209981,0.0001865,2]
[328984687,1718041847509,-250.0,0.00018655,2]
[328984689,1718041847520,-625.61,0.00018741,2]
[328984691,1718041847531,-1189.36910705,0.00019186,2]
[328984694,1718041847542,-4872.65,0.00019267,2]
[328984697,1718041847552,-1981.57791662,0.0002,2]
[328984700,1718041847562,-226.69645122,0.000201,2]
[328984702,1718041847572,-1000.0,0.00020568,2]
[328984704,1718041847583,-625.61,0.00021005,2]
[328984706,1718041847593,-1189.36910705,0.00021329,2]
[328984708,1718041847604,-500.0,0.000219,2]
[328984710,1718041847613,-463.19,0.00021918,2]
[328984712,1718041847623,-250.0,0.00021918,2]
[328984714,1718041847634,-4872.65,0.00022006,2]
[328984716,1718041847644,-488.52,0.00022143,2]
[328984718,1718041847654,-195.40209981,0.000224,2]
[328984720,1718041847664,-792.46810918,0.00022579,2]
[328984722,1718041847674,-1000.0,0.00022625,2]
[328984724,1718041847685,-625.61,0.00023269,2]
[328984726,1718041847695,-1189.36910705,0.00023471,2]
[328984728,1718041847705,-2309.83124306,0.000236,2]
[328984730,1718041847715,-1000.0,0.00023851,2]
[328984732,1718041847725,-582.98850736,0.00024,2]
[328984734,1718041847735,-150.0,0.00024326,2]
[328984736,1718041847746,-298.46,0.00024384,2]
[328984738,1718041847756,-164.24,0.00024384,2]
[328984740,1718041847766,-1000.0,0.00024682,2]
[328984742,1718041847776,-6230.6135567,0.00024798,2]
[328984745,1718041847787,-6230.61355668,0.00024798,2]
[328984747,1718041847799,-6230.61355668,0.00024798,2]
[328984749,1718041847808,-6230.61355668,0.00024798,2]
[328984750,1718041847818,-6230.61355668,0.00024798,2]
[328984753,1718041847828,-6230.61355668,0.00024798,2]
[328984755,1718041847838,-2838.36496994,0.00024799,2]
[328984756,1718041847847,-2838.36496987,0.00024799,2]
[328984758,1718041847857,-2838.36496987,0.00024799,2]
[328984761,1718041847867,-2838.36496987,0.00024799,2]
[328984763,1718041847877,-6.50953999,0.00024799,2]
[328984765,1718041847890,-2831.85542988,0.00024799,2]
[328984767,1718041847900,-2838.36496987,0.00024799,2]
[328984769,1718041847910,-6230.61355668,0.000249,2]
[328984771,1718041847920,-2838.36496987,0.000249,2]
[328984773,1718041847930,-706.630092,0.00025,2]
[328984775,1718041847940,-1250.0,0.00025,2]
[328984777,1718041847950,-4905.36,0.00025245,2]
[328984779,1718041847960,-75.83684926,0.00025533,2]
[328984781,1718041847972,-549.77315074,0.00025533,2]
[328984783,1718041847982,-318.39,0.00025577,2]
[328984785,1718041847992,-1189.36910705,0.00025614,2]
[328984787,1718041848002,-152.7740946,0.00025999,2]
[328984789,1718041848012,-2633.27778016,0.00026,2]
[328984791,1718041848022,-153.6050369,0.00026053,2]
[328984793,1718041848036,-166.66666666,0.00026065,2]
[328984795,1718041848047,-152.7740946,0.00026097,2]
[328984797,1718041848057,-159.85713233,0.00026114,2]
[328984799,1718041848068,-154.57169999,0.00026149,2]
[328984801,1718041848078,-195.40209981,0.0002615,2]
[328984803,1718041848088,-300.0,0.00026214,2]
[328984805,1718041848098,-203.97,0.00026314,2]
[328984807,1718041848110,-4982.32,0.00026385,2]
[328984809,1718041848120,-4943.22,0.00026397,2]
[328984811,1718041848130,-4846.32,0.00026404,2]
[328984813,1718041848140,-4934.94,0.00026414,2]
[328984815,1718041848150,-152.7740946,0.00026431,2]
[328984817,1718041848160,-159.83725638,0.00026434,2]
[328984819,1718041848170,-155.91427048,0.00026478,2]
[328984821,1718041848179,-6230.61355668,0.00026567,2]
[328984823,1718041848189,-2838.36496987,0.00026567,2]
[328984825,1718041848199,-152.7740946,0.00026617,2]
[328984827,1718041848209,-4850.78,0.00026656,2]
[328984829,1718041848219,-164.96126117,0.00026717,2]
[328984831,1718041848229,-164.96126117,0.0002673,2]
[328984833,1718041848240,-153.60503691,0.00026767,2]
[328984835,1718041848250,-4986.56,0.00026782,2]
[328984837,1718041848260,-164.96126117,0.00026786,2]
[328984839,1718041848270,-152.7740946,0.00026823,2]
[328984841,1718041848280,-154.18730439,0.00026891,2]
[328984843,1718041848290,-152.7740946,0.00026956,2]
[328984845,1718041848301,-424.35038744,0.00026998,2]
[328984847,1718041848311,-18534.80354737,0.00027,2]
[328984849,1718041848321,-1300.0,0.00027,2]
[328984851,1718041848331,-155.91427048,0.00027075,2]
[328984853,1718041848341,-164.96126117,0.00027091,2]
[328984855,1718041848351,-155.38548912,0.00027111,2]
[328984857,1718041848361,-152.7740946,0.00027358,2]
[328984859,1718041848371,-159.85713233,0.00027362,2]
[328984861,1718041848381,-13293.35,0.00027397,2]
[328984863,1718041848392,-152.7740946,0.00027428,2]
[328984864,1718041848401,-154.57169999,0.00027546,2]
[328984865,1718041848411,-166.66666665,0.00027626,2]
[328984866,1718041848421,-155.91427048,0.00027653,2]
[328984867,1718041848430,-152.7740946,0.00027743,2]
[328984868,1718041848440,-1189.36910705,0.00027757,2]
[328984869,1718041848449,-625.61,0.00027796,2]
[328984870,1718041848460,-164.96126117,0.00027838,2]
[328984871,1718041848469,-422.632,0.00027925,2]
[328984872,1718041848479,-276.387,0.00027925,2]
[328984873,1718041848488,-1978.0,0.00027925,2]
[328984874,1718041848498,-1065.0,0.00027925,2]
[328984875,1718041848508,-216.0,0.00027925,2]
[328984877,1718041848522,-152.7740946,0.00027968,2]
[328984879,1718041848532,-6230.61355668,0.00028233,2]
[328984881,1718041848543,-2838.36496987,0.00028233,2]
[328984883,1718041848553,-155.91427048,0.00028271,2]
[328984885,1718041848563,-154.57169999,0.00028302,2]
[328984887,1718041848573,-154.57169999,0.00028501,2]
[328984889,1718041848583,-164.96126117,0.00028571,2]
[328984891,1718041848592,-154.18730439,0.00028661,2]
[328984893,1718041848603,-5618.74696011,0.00029,2]
[328984895,1718041848613,-714.36804046,0.00029,2]
[328984897,1718041848623,-150.0,0.00029,2]
[328984899,1718041848633,-185.99482265,0.00029041,4]
[328984901,1718041848643,-500.0,0.00029041,4]
[328984903,1718041848653,-517.51,0.00029041,4]
[328984905,1718041848663,-500.0,0.00029041,4]
[328984907,1718041848674,-723.14754081,0.00029041,3]
[328984909,1718041848683,-500.0,0.00029041,4]
[328984911,1718041848694,-500.0,0.00029041,4]
[328984913,1718041848704,-500.0,0.00029041,4]
[328984915,1718041848715,-500.0,0.00029041,4]
[328984917,1718041848725,-500.0,0.00029041,4]
[328984919,1718041848735,-500.0,0.00029041,4]
[328984921,1718041848744,-500.0,0.00029041,4]
[328984923,1718041848754,-500.0,0.00029041,4]